[Event "Titled Tuesday Blitz December 20 Late 2022"]
[White "Dias, Joao Batista"]
[Black "Hirneise, Jens"]
[WhiteFideId "2108240"]
[BlackFideId "24614734"]
[WhiteElo "1898"]
[BlackElo "2345"]
[Result "1/2-1/2"]
[Round "01"]
[TimeControl "180+1"]
[Date "2022.12.21"]
[WhiteClock "0:00:16"]
[BlackClock "0:00:12"]

1. e4 {[%clk 0:02:59]}  c5 {[%clk 0:02:59]} 2. Nf3 {[%clk 0:02:58]}  e6 {[%clk 0:02:59]} 3. d4 {[%clk 0:02:56]}  cxd4 {[%clk 0:02:59]} 4. Nxd4 {[%clk 0:02:56]}  Nf6 {[%clk 0:02:59]} 5. Bd3 {[%clk 0:02:54]}  Nc6 {[%clk 0:02:58]} 6. Nxc6 {[%clk 0:02:54]}  bxc6 {[%clk 0:02:57]} 7. O-O {[%clk 0:02:55]}  d5 {[%clk 0:02:57]} 8. b3 {[%clk 0:02:55]}  dxe4 {[%clk 0:02:55]} 9. Bc4 {[%clk 0:02:55]}  Qc7 {[%clk 0:02:52]} 10. Bb2 {[%clk 0:02:53]}  Bd6 {[%clk 0:02:51]} 11. h3 {[%clk 0:02:52]}  Be5 {[%clk 0:02:50]} 12. Bxe5 {[%clk 0:02:48]}  Qxe5 {[%clk 0:02:49]} 13. Nd2 {[%clk 0:02:49]}  O-O {[%clk 0:02:46]} 14. Re1 {[%clk 0:02:48]}  c5 {[%clk 0:02:39]} 15. Qe2 {[%clk 0:02:48]}  Bb7 {[%clk 0:02:38]} 16. Rad1 {[%clk 0:02:36]}  Rfd8 {[%clk 0:02:34]} 17. Nf1 {[%clk 0:02:36]}  Nd5 {[%clk 0:02:11]} 18. Qg4 {[%clk 0:02:23]}  f5 {[%clk 0:02:08]} 19. Qg5 {[%clk 0:02:20]}  h6 {[%clk 0:02:05]} 20. Qh4 {[%clk 0:02:17]}  Nf6 {[%clk 0:01:52]} 21. Ne3 {[%clk 0:02:09]}  Kh7 {[%clk 0:01:48]} 22. Rxd8 {[%clk 0:01:54]}  Rxd8 {[%clk 0:01:47]} 23. Nf1 {[%clk 0:01:28]}  g5 {[%clk 0:01:41]} 24. Qg3 {[%clk 0:01:28]}  f4 {[%clk 0:01:41]} 25. Qh2 {[%clk 0:01:26]}  Qc3 {[%clk 0:01:39]} 26. Re2 {[%clk 0:01:14]}  Rd1 {[%clk 0:01:34]} 27. h4 {[%clk 0:01:06]}  Ng4 {[%clk 0:01:10]} 28. Qh3 {[%clk 0:01:01]}  Qxh3 {[%clk 0:01:09]} 29. gxh3 {[%clk 0:01:01]}  Ne5 {[%clk 0:01:06]} 30. Bxe6 {[%clk 0:01:00]}  Nf3+ {[%clk 0:01:06]} 31. Kg2 {[%clk 0:00:59]}  Nxh4+ {[%clk 0:01:06]} 32. Kg1 {[%clk 0:00:59]}  e3 {[%clk 0:01:02]} 33. fxe3 {[%clk 0:00:55]}  f3 {[%clk 0:00:55]} 34. Rd2 {[%clk 0:00:52]}  Rxd2 {[%clk 0:00:49]} 35. Nxd2 {[%clk 0:00:52]}  Kg7 {[%clk 0:00:46]} 36. Kf2 {[%clk 0:00:52]}  h5 {[%clk 0:00:42]} 37. e4 {[%clk 0:00:50]}  Kf6 {[%clk 0:00:40]} 38. Bd7 {[%clk 0:00:47]}  Ke7 {[%clk 0:00:36]} 39. Bf5 {[%clk 0:00:37]}  Nxf5 {[%clk 0:00:36]} 40. exf5 {[%clk 0:00:37]}  Kf6 {[%clk 0:00:32]} 41. Nxf3 {[%clk 0:00:37]}  Kxf5 {[%clk 0:00:29]} 42. Nd2 {[%clk 0:00:29]}  Bd5 {[%clk 0:00:24]} 43. Nf1 {[%clk 0:00:26]}  Kf4 {[%clk 0:00:23]} 44. Ne3 {[%clk 0:00:26]}  Be4 {[%clk 0:00:22]} 45. c3 {[%clk 0:00:26]}  g4 {[%clk 0:00:22]} 46. hxg4 {[%clk 0:00:25]}  hxg4 {[%clk 0:00:22]} 47. Nf1 {[%clk 0:00:26]}  Bd3 {[%clk 0:00:19]} 48. Ng3 {[%clk 0:00:24]}  a5 {[%clk 0:00:18]} 49. a3 {[%clk 0:00:24]}  Bc2 {[%clk 0:00:18]} 50. b4 {[%clk 0:00:24]}  cxb4 {[%clk 0:00:19]} 51. cxb4 {[%clk 0:00:24]}  axb4 {[%clk 0:00:19]} 52. axb4 {[%clk 0:00:24]}  Bd3 {[%clk 0:00:19]} 53. Nh1 {[%clk 0:00:23]}  Be4 {[%clk 0:00:19]} 54. Ng3 {[%clk 0:00:23]}  Bf3 {[%clk 0:00:18]} 55. Nf1 {[%clk 0:00:23]}  Bc6 {[%clk 0:00:17]} 56. Ng3 {[%clk 0:00:23]}  Bb5 {[%clk 0:00:17]} 57. Nh1 {[%clk 0:00:22]}  Bc6 {[%clk 0:00:17]} 58. Ng3 {[%clk 0:00:22]}  Bb7 {[%clk 0:00:17]} 59. Nf1 {[%clk 0:00:22]}  Ba6 {[%clk 0:00:16]} 60. Ng3 {[%clk 0:00:22]}  Bc4 {[%clk 0:00:16]} 61. Nh1 {[%clk 0:00:21]}  Bd5 {[%clk 0:00:16]} 62. Ng3 {[%clk 0:00:21]}  Bc6 {[%clk 0:00:16]} 63. Nf1 {[%clk 0:00:20]}  Bf3 {[%clk 0:00:15]} 64. b5 {[%clk 0:00:19]}  Bd5 {[%clk 0:00:13]} 65. b6 {[%clk 0:00:18]}  Bb7 {[%clk 0:00:12]} 66. Ng3 {[%clk 0:00:18]}  Ke5 {[%clk 0:00:13]} 67. Ke3 {[%clk 0:00:18]}  Kd6 {[%clk 0:00:11]} 68. Kf4 {[%clk 0:00:17]}  Kc6 {[%clk 0:00:12]} 69. Ne4 {[%clk 0:00:17]}  Kxb6 {[%clk 0:00:13]} 70. Nf6 {[%clk 0:00:17]}  g3 {[%clk 0:00:12]} 71. Kxg3 {[%clk 0:00:16]} 1/2-1/2


[Site "https://www.chess.com"]

[Event "Titled Tuesday Blitz December 20 Late 2022"]
[White "Eric0702"]
[Black "Bluebaum, Matthias"]
[BlackFideId "24651516"]
[WhiteElo "2506"]
[BlackElo "2634"]
[Result "0-1"]
[Round "01"]
[TimeControl "180+1"]
[Date "2022.12.21"]
[WhiteClock "0:00:26"]
[BlackClock "0:02:07"]

1. d4 {[%clk 0:03:00]}  d5 {[%clk 0:02:59]} 2. Nf3 {[%clk 0:03:00]}  e6 {[%clk 0:02:57]} 3. Bf4 {[%clk 0:03:00]}  c5 {[%clk 0:02:58]} 4. e3 {[%clk 0:03:00]}  Nc6 {[%clk 0:02:59]} 5. c3 {[%clk 0:03:00]}  Bd6 {[%clk 0:02:59]} 6. Bg3 {[%clk 0:02:59]}  Nge7 {[%clk 0:02:59]} 7. Nbd2 {[%clk 0:02:41]}  O-O {[%clk 0:02:57]} 8. Bd3 {[%clk 0:02:33]}  cxd4 {[%clk 0:02:56]} 9. exd4 {[%clk 0:02:33]}  f6 {[%clk 0:02:56]} 10. Qe2 {[%clk 0:02:12]}  Ng6 {[%clk 0:02:53]} 11. O-O {[%clk 0:02:03]}  Nf4 {[%clk 0:02:51]} 12. Bxf4 {[%clk 0:02:03]}  Bxf4 {[%clk 0:02:52]} 13. Rfe1 {[%clk 0:01:59]}  Bc7 {[%clk 0:02:44]} 14. a3 {[%clk 0:01:56]}  e5 {[%clk 0:02:40]} 15. Bb5 {[%clk 0:01:38]}  e4 {[%clk 0:02:37]} 16. Nh4 {[%clk 0:01:31]}  f5 {[%clk 0:02:35]} 17. g3 {[%clk 0:01:31]}  f4 {[%clk 0:02:31]} 18. Qh5 {[%clk 0:01:19]}  Be6 {[%clk 0:02:22]} 19. Rad1 {[%clk 0:01:05]}  Qf6 {[%clk 0:02:19]} 20. Re2 {[%clk 0:00:37]}  g6 {[%clk 0:02:17]} 21. Qh6 {[%clk 0:00:34]}  Bg4 {[%clk 0:02:14]} 22. f3 {[%clk 0:00:33]}  exf3 {[%clk 0:02:15]} 23. Ndxf3 {[%clk 0:00:26]}  fxg3 {[%clk 0:02:15]} 24. Rf1 {[%clk 0:00:26]}  Bf4 {[%clk 0:02:07]} 0-1


[Site "https://www.chess.com"]

[Event "Titled Tuesday Blitz December 20 Late 2022"]
[White "Fernandez De La Vara, Arnaldo"]
[Black "Ankerst, Mihael"]
[WhiteFideId "3518388"]
[BlackFideId "14602369"]
[WhiteElo "2387"]
[BlackElo "2364"]
[Result "1-0"]
[Round "01"]
[TimeControl "180+1"]
[Date "2022.12.21"]
[WhiteClock "0:01:12"]
[BlackClock "0:00:13"]

1. Nf3 {[%clk 0:03:00]}  Nf6 {[%clk 0:02:57]} 2. g3 {[%clk 0:03:01]}  g6 {[%clk 0:02:57]} 3. b3 {[%clk 0:03:01]}  Bg7 {[%clk 0:02:57]} 4. Bb2 {[%clk 0:03:02]}  a5 {[%clk 0:02:56]} 5. c4 {[%clk 0:02:59]}  a4 {[%clk 0:02:53]} 6. Bg2 {[%clk 0:02:59]}  O-O {[%clk 0:02:51]} 7. O-O {[%clk 0:03:00]}  c5 {[%clk 0:02:51]} 8. d4 {[%clk 0:02:59]}  d6 {[%clk 0:02:47]} 9. Nc3 {[%clk 0:02:57]}  a3 {[%clk 0:02:47]} 10. Bc1 {[%clk 0:02:58]}  Nc6 {[%clk 0:02:40]} 11. Nb5 {[%clk 0:02:51]}  Qb6 {[%clk 0:02:25]} 12. e3 {[%clk 0:02:42]}  Bf5 {[%clk 0:02:07]} 13. Bxa3 {[%clk 0:02:35]}  Nb4 {[%clk 0:01:56]} 14. Ne1 {[%clk 0:02:12]}  Rfd8 {[%clk 0:01:35]} 15. Qe2 {[%clk 0:02:03]}  h5 {[%clk 0:01:33]} 16. h3 {[%clk 0:01:56]}  Bd7 {[%clk 0:01:30]} 17. Bxb4 {[%clk 0:01:47]}  cxb4 {[%clk 0:01:31]} 18. a4 {[%clk 0:01:37]}  bxa3 {[%clk 0:01:17]} 19. Nc2 {[%clk 0:01:37]}  Bxb5 {[%clk 0:01:02]} 20. cxb5 {[%clk 0:01:38]}  a2 {[%clk 0:01:00]} 21. Nb4 {[%clk 0:01:38]}  Ra5 {[%clk 0:00:58]} 22. Rfc1 {[%clk 0:01:33]}  Rxb5 {[%clk 0:00:56]} 23. Nxa2 {[%clk 0:01:31]}  Rxb3 {[%clk 0:00:56]} 24. Nc3 {[%clk 0:01:26]}  Rc8 {[%clk 0:00:31]} 25. Nd5 {[%clk 0:01:22]}  Rxc1+ {[%clk 0:00:30]} 26. Rxc1 {[%clk 0:01:23]}  Nxd5 {[%clk 0:00:28]} 27. Bxd5 {[%clk 0:01:23]}  Rb1 {[%clk 0:00:28]} 28. Qc2 {[%clk 0:01:18]}  Rb2 {[%clk 0:00:16]} 29. Qxg6 {[%clk 0:01:13]}  e6 {[%clk 0:00:13]} 30. Rc8+ {[%clk 0:01:12]} 1-0


[Site "https://www.chess.com"]

[Event "Titled Tuesday Blitz December 20 Late 2022"]
[White "Fernandez Siles, Luis"]
[Black "Iliaguev, Nisim"]
[WhiteFideId "2209420"]
[BlackFideId "2817276"]
[WhiteElo "2186"]
[BlackElo "2241"]
[Result "0-1"]
[Round "01"]
[TimeControl "180+1"]
[Date "2022.12.21"]
[WhiteClock "0:01:30"]
[BlackClock "0:02:41"]

1. d4 {[%clk 0:03:00]}  Nf6 {[%clk 0:03:00]} 2. c4 {[%clk 0:03:00]}  e6 {[%clk 0:03:00]} 3. Nf3 {[%clk 0:02:59]}  Bb4+ {[%clk 0:03:00]} 4. Nbd2 {[%clk 0:02:58]}  O-O {[%clk 0:03:00]} 5. a3 {[%clk 0:02:58]}  Bxd2+ {[%clk 0:03:00]} 6. Qxd2 {[%clk 0:02:59]}  d5 {[%clk 0:03:01]} 7. Qg5 {[%clk 0:02:55]}  Ne4 {[%clk 0:02:59]} 8. Qxd8 {[%clk 0:02:53]}  Rxd8 {[%clk 0:03:00]} 9. cxd5 {[%clk 0:02:48]}  exd5 {[%clk 0:03:00]} 10. Ne5 {[%clk 0:02:46]}  c5 {[%clk 0:02:55]} 11. dxc5 {[%clk 0:02:40]}  Nxc5 {[%clk 0:02:55]} 12. Bf4 {[%clk 0:02:29]}  f6 {[%clk 0:02:47]} 13. Nf3 {[%clk 0:02:26]}  Nc6 {[%clk 0:02:47]} 14. e3 {[%clk 0:02:23]}  Bf5 {[%clk 0:02:41]} 15. Bb5 {[%clk 0:02:16]}  Nb3 {[%clk 0:02:41]} 16. Rd1 {[%clk 0:01:30]}  Bc2 {[%clk 0:02:41]} 0-1


[Site "https://www.chess.com"]

[Event "Titled Tuesday Blitz December 20 Late 2022"]
[White "Figorito, Nick"]
[Black "Wieczorek, Oskar"]
[WhiteFideId "30923689"]
[BlackFideId "1133950"]
[WhiteElo "2412"]
[BlackElo "2415"]
[Result "0-1"]
[Round "01"]
[TimeControl "180+1"]
[Date "2022.12.21"]
[WhiteClock "0:01:14"]
[BlackClock "0:01:53"]

1. Nf3 {[%clk 0:03:00]}  c5 {[%clk 0:02:57]} 2. g3 {[%clk 0:03:01]}  g6 {[%clk 0:02:58]} 3. Bg2 {[%clk 0:03:01]}  Bg7 {[%clk 0:02:58]} 4. O-O {[%clk 0:03:02]}  Nc6 {[%clk 0:02:59]} 5. c4 {[%clk 0:03:02]}  e5 {[%clk 0:02:59]} 6. Nc3 {[%clk 0:03:02]}  Nge7 {[%clk 0:03:00]} 7. d3 {[%clk 0:03:02]}  O-O {[%clk 0:03:00]} 8. Be3 {[%clk 0:03:00]}  d6 {[%clk 0:02:59]} 9. Qd2 {[%clk 0:03:00]}  Nd4 {[%clk 0:02:59]} 10. Bh6 {[%clk 0:02:46]}  Be6 {[%clk 0:02:59]} 11. Bxg7 {[%clk 0:02:46]}  Kxg7 {[%clk 0:03:00]} 12. Ne1 {[%clk 0:02:29]}  d5 {[%clk 0:02:52]} 13. cxd5 {[%clk 0:02:28]}  Nxd5 {[%clk 0:02:53]} 14. Nxd5 {[%clk 0:02:20]}  Bxd5 {[%clk 0:02:53]} 15. Bxd5 {[%clk 0:02:19]}  Qxd5 {[%clk 0:02:54]} 16. Nc2 {[%clk 0:02:17]}  Ne6 {[%clk 0:02:42]} 17. Ne3 {[%clk 0:02:12]}  Qd7 {[%clk 0:02:30]} 18. Qc3 {[%clk 0:02:10]}  Nd4 {[%clk 0:02:26]} 19. Rfe1 {[%clk 0:02:06]}  Rac8 {[%clk 0:02:25]} 20. Nc4 {[%clk 0:01:59]}  Rfe8 {[%clk 0:02:23]} 21. a4 {[%clk 0:01:52]}  h5 {[%clk 0:02:21]} 22. h4 {[%clk 0:01:51]}  Rc6 {[%clk 0:02:15]} 23. Ne3 {[%clk 0:01:32]}  f5 {[%clk 0:02:01]} 24. Nc2 {[%clk 0:01:25]}  f4 {[%clk 0:01:58]} 25. Nxd4 {[%clk 0:01:19]}  exd4 {[%clk 0:01:59]} 26. Qd2 {[%clk 0:01:18]}  fxg3 {[%clk 0:01:59]} 27. fxg3 {[%clk 0:01:19]}  Re3 {[%clk 0:01:58]} 28. Kh2 {[%clk 0:01:14]}  Qg4 {[%clk 0:01:53]} 0-1


[Site "https://www.chess.com"]

[Event "Titled Tuesday Blitz December 20 Late 2022"]
[White "Foerster-Yialamas, Lucas"]
[Black "Dimitrov, Atanas"]
[WhiteFideId "30901774"]
[BlackFideId "2901315"]
[WhiteElo "2067"]
[BlackElo "2620"]
[Result "0-1"]
[Round "01"]
[TimeControl "180+1"]
[Date "2022.12.21"]
[WhiteClock "0:01:41"]
[BlackClock "0:01:45"]

1. e4 {[%clk 0:02:55]}  c5 {[%clk 0:02:59]} 2. Nf3 {[%clk 0:02:47]}  d6 {[%clk 0:02:59]} 3. d4 {[%clk 0:02:47]}  cxd4 {[%clk 0:03:00]} 4. Nxd4 {[%clk 0:02:48]}  Nf6 {[%clk 0:03:00]} 5. Nc3 {[%clk 0:02:44]}  g6 {[%clk 0:03:00]} 6. f3 {[%clk 0:02:43]}  Bg7 {[%clk 0:03:00]} 7. Be3 {[%clk 0:02:44]}  Nc6 {[%clk 0:03:00]} 8. Qd2 {[%clk 0:02:35]}  Bd7 {[%clk 0:03:00]} 9. O-O-O {[%clk 0:02:35]}  O-O {[%clk 0:03:00]} 10. h4 {[%clk 0:02:34]}  h5 {[%clk 0:03:01]} 11. Be2 {[%clk 0:02:33]}  Ne5 {[%clk 0:03:01]} 12. Bh6 {[%clk 0:02:29]}  Rc8 {[%clk 0:03:01]} 13. Nd5 {[%clk 0:02:13]}  Nxd5 {[%clk 0:02:51]} 14. exd5 {[%clk 0:02:14]}  Rc5 {[%clk 0:02:20]} 15. Bxg7 {[%clk 0:02:13]}  Kxg7 {[%clk 0:02:20]} 16. Rdg1 {[%clk 0:02:01]}  Rh8 {[%clk 0:02:19]} 17. g4 {[%clk 0:01:54]}  Nc4 {[%clk 0:02:11]} 18. Qe1 {[%clk 0:01:45]}  Nb6 {[%clk 0:01:59]} 19. gxh5 {[%clk 0:01:44]}  Rxh5 {[%clk 0:01:56]} 20. f4 {[%clk 0:01:45]}  Rhxd5 {[%clk 0:01:54]} 21. Nb3 {[%clk 0:01:45]}  Bf5 {[%clk 0:01:46]} 22. h5 {[%clk 0:01:43]}  Rxc2+ {[%clk 0:01:45]} 23. Kb1 {[%clk 0:01:41]}  Rxe2+ {[%clk 0:01:45]} 0-1


[Site "https://www.chess.com"]

[Event "Titled Tuesday Blitz December 20 Late 2022"]
[White "Gasparyan, David"]
[Black "Indjic, Aleksandar"]
[WhiteFideId "13311980"]
[BlackFideId "911925"]
[WhiteElo "2450"]
[BlackElo "2616"]
[Result "1/2-1/2"]
[Round "01"]
[TimeControl "180+1"]
[Date "2022.12.21"]
[WhiteClock "0:00:08"]
[BlackClock "0:00:16"]

1. e4 {[%clk 0:02:58]}  c5 {[%clk 0:02:57]} 2. Nf3 {[%clk 0:02:57]}  e6 {[%clk 0:02:57]} 3. b3 {[%clk 0:02:57]}  Nc6 {[%clk 0:02:55]} 4. Bb2 {[%clk 0:02:57]}  d6 {[%clk 0:02:54]} 5. Nc3 {[%clk 0:02:57]}  Nf6 {[%clk 0:02:53]} 6. Be2 {[%clk 0:02:57]}  Nd4 {[%clk 0:02:52]} 7. O-O {[%clk 0:02:53]}  a6 {[%clk 0:02:50]} 8. Re1 {[%clk 0:02:51]}  b5 {[%clk 0:02:47]} 9. Bf1 {[%clk 0:02:51]}  Nxf3+ {[%clk 0:02:41]} 10. Qxf3 {[%clk 0:02:50]}  Bb7 {[%clk 0:02:42]} 11. d3 {[%clk 0:02:40]}  Be7 {[%clk 0:02:38]} 12. Qg3 {[%clk 0:02:36]}  g5 {[%clk 0:02:08]} 13. Qxg5 {[%clk 0:02:08]}  Nxe4 {[%clk 0:02:06]} 14. Qf4 {[%clk 0:02:03]}  Nxc3 {[%clk 0:02:00]} 15. Bxc3 {[%clk 0:02:04]}  Rg8 {[%clk 0:02:00]} 16. g3 {[%clk 0:01:57]}  Bg5 {[%clk 0:01:51]} 17. Qg4 {[%clk 0:01:57]}  Kd7 {[%clk 0:01:45]} 18. Qh5 {[%clk 0:01:55]}  Qf8 {[%clk 0:01:42]} 19. Bg2 {[%clk 0:01:47]}  Bxg2 {[%clk 0:01:33]} 20. Kxg2 {[%clk 0:01:47]}  h6 {[%clk 0:01:26]} 21. Qf3 {[%clk 0:01:47]}  d5 {[%clk 0:01:25]} 22. Bb2 {[%clk 0:01:29]}  b4 {[%clk 0:01:23]} 23. a3 {[%clk 0:01:28]}  f5 {[%clk 0:00:49]} 24. axb4 {[%clk 0:01:26]}  cxb4 {[%clk 0:00:49]} 25. Bd4 {[%clk 0:01:10]}  Qd6 {[%clk 0:00:47]} 26. Ra5 {[%clk 0:01:08]}  Rac8 {[%clk 0:00:42]} 27. Rea1 {[%clk 0:01:06]}  Rc6 {[%clk 0:00:40]} 28. Qe2 {[%clk 0:01:04]}  Ra8 {[%clk 0:00:33]} 29. Be5 {[%clk 0:01:04]}  Qf8 {[%clk 0:00:32]} 30. d4 {[%clk 0:01:03]}  Qc8 {[%clk 0:00:32]} 31. Qh5 {[%clk 0:01:02]}  Be7 {[%clk 0:00:30]} 32. Qxh6 {[%clk 0:00:52]}  Rxc2 {[%clk 0:00:28]} 33. Qg7 {[%clk 0:00:44]}  Rc6 {[%clk 0:00:27]} 34. h4 {[%clk 0:00:44]}  Qf8 {[%clk 0:00:26]} 35. Qh7 {[%clk 0:00:43]}  Ke8 {[%clk 0:00:18]} 36. h5 {[%clk 0:00:41]}  Qf7 {[%clk 0:00:19]} 37. Qh8+ {[%clk 0:00:39]}  Qf8 {[%clk 0:00:18]} 38. Qxf8+ {[%clk 0:00:38]}  Kxf8 {[%clk 0:00:18]} 39. Rh1 {[%clk 0:00:37]}  Kg8 {[%clk 0:00:18]} 40. h6 {[%clk 0:00:37]}  Kh7 {[%clk 0:00:19]} 41. Ra2 {[%clk 0:00:29]}  Rc3 {[%clk 0:00:19]} 42. Re2 {[%clk 0:00:28]}  Rac8 {[%clk 0:00:18]} 43. Bg7 {[%clk 0:00:26]}  R8c6 {[%clk 0:00:18]} 44. Rhe1 {[%clk 0:00:26]}  Rxb3 {[%clk 0:00:18]} 45. Rxe6 {[%clk 0:00:26]}  Rxe6 {[%clk 0:00:18]} 46. Rxe6 {[%clk 0:00:27]}  Bg5 {[%clk 0:00:17]} 47. f4 {[%clk 0:00:24]}  Bd8 {[%clk 0:00:16]} 48. Rd6 {[%clk 0:00:24]}  Bc7 {[%clk 0:00:15]} 49. Rd7 {[%clk 0:00:24]}  Ba5 {[%clk 0:00:15]} 50. Bf8+ {[%clk 0:00:22]}  Kh8 {[%clk 0:00:15]} 51. Rxd5 {[%clk 0:00:16]}  Bb6 {[%clk 0:00:13]} 52. Bg7+ {[%clk 0:00:13]}  Kh7 {[%clk 0:00:13]} 53. Rd6 {[%clk 0:00:12]}  Ba5 {[%clk 0:00:12]} 54. Rxa6 {[%clk 0:00:11]}  Ra3 {[%clk 0:00:13]} 55. Bf8 {[%clk 0:00:10]}  Ra2+ {[%clk 0:00:13]} 56. Kh3 {[%clk 0:00:10]}  b3 {[%clk 0:00:14]} 57. Ra7+ {[%clk 0:00:10]}  Kh8 {[%clk 0:00:14]} 58. h7 {[%clk 0:00:10]}  Bb6 {[%clk 0:00:14]} 59. Rb7 {[%clk 0:00:10]}  Bxd4 {[%clk 0:00:14]} 60. Bd6 {[%clk 0:00:10]}  b2 {[%clk 0:00:13]} 61. Be5+ {[%clk 0:00:09]}  Bxe5 {[%clk 0:00:13]} 62. fxe5 {[%clk 0:00:10]}  Ra5 {[%clk 0:00:13]} 63. Rxb2 {[%clk 0:00:10]}  Rxe5 {[%clk 0:00:13]} 64. Rb7 {[%clk 0:00:11]}  Re4 {[%clk 0:00:13]} 65. Kg2 {[%clk 0:00:11]}  Rd4 {[%clk 0:00:13]} 66. Kf3 {[%clk 0:00:11]}  Rc4 {[%clk 0:00:14]} 67. Rf7 {[%clk 0:00:12]}  Ra4 {[%clk 0:00:14]} 68. Rxf5 {[%clk 0:00:12]}  Kxh7 {[%clk 0:00:15]} 69. Rf4 {[%clk 0:00:12]}  Ra3+ {[%clk 0:00:15]} 70. Kg4 {[%clk 0:00:12]}  Kg6 {[%clk 0:00:15]} 71. Rb4 {[%clk 0:00:12]}  Ra6 {[%clk 0:00:15]} 72. Rd4 {[%clk 0:00:09]}  Rb6 {[%clk 0:00:16]} 73. Kh4 {[%clk 0:00:08]}  Ra6 {[%clk 0:00:16]} 74. Rg4+ {[%clk 0:00:08]}  Kh6 {[%clk 0:00:16]} 75. Rg8 {[%clk 0:00:07]}  Ra4+ {[%clk 0:00:15]} 76. g4 {[%clk 0:00:08]}  Ra6 {[%clk 0:00:14]} 77. g5+ {[%clk 0:00:07]}  Kh7 {[%clk 0:00:15]} 78. Rd8 {[%clk 0:00:08]}  Ra1 {[%clk 0:00:15]} 79. Rd7+ {[%clk 0:00:05]}  Kg6 {[%clk 0:00:15]} 80. Rd6+ {[%clk 0:00:06]}  Kg7 {[%clk 0:00:15]} 81. Rd4 {[%clk 0:00:05]}  Rh1+ {[%clk 0:00:14]} 82. Kg4 {[%clk 0:00:06]}  Rg1+ {[%clk 0:00:15]} 83. Kf5 {[%clk 0:00:07]}  Rf1+ {[%clk 0:00:15]} 84. Ke5 {[%clk 0:00:07]}  Re1+ {[%clk 0:00:15]} 85. Kf4 {[%clk 0:00:08]}  Rf1+ {[%clk 0:00:16]} 86. Ke5 {[%clk 0:00:08]}  Re1+ {[%clk 0:00:16]} 87. Kd5 {[%clk 0:00:08]}  Kg6 {[%clk 0:00:15]} 88. Re4 {[%clk 0:00:07]}  Rxe4 {[%clk 0:00:15]} 89. Kxe4 {[%clk 0:00:08]}  Kxg5 {[%clk 0:00:16]} 1/2-1/2


[Site "https://www.chess.com"]

[Event "Titled Tuesday Blitz December 20 Late 2022"]
[White "Gerbelli Neto, Eduardo"]
[Black "Migot, Tangi"]
[WhiteFideId "2103281"]
[BlackFideId "662445"]
[WhiteElo "2178"]
[BlackElo "2573"]
[Result "1-0"]
[Round "01"]
[TimeControl "180+1"]
[Date "2022.12.21"]
[WhiteClock "0:00:09"]
[BlackClock "0:00:24"]

1. e4 {[%clk 0:02:59]}  c5 {[%clk 0:03:00]} 2. Nc3 {[%clk 0:02:58]}  d6 {[%clk 0:03:00]} 3. f4 {[%clk 0:02:58]}  Nc6 {[%clk 0:03:00]} 4. Nf3 {[%clk 0:02:59]}  g6 {[%clk 0:02:59]} 5. Bc4 {[%clk 0:02:58]}  Bg7 {[%clk 0:02:57]} 6. O-O {[%clk 0:02:58]}  e6 {[%clk 0:02:58]} 7. d3 {[%clk 0:02:57]}  Nge7 {[%clk 0:02:58]} 8. Bb3 {[%clk 0:02:58]}  Na5 {[%clk 0:02:56]} 9. Qe1 {[%clk 0:02:52]}  Nxb3 {[%clk 0:02:55]} 10. axb3 {[%clk 0:02:53]}  O-O {[%clk 0:02:55]} 11. Kh1 {[%clk 0:02:46]}  Bd7 {[%clk 0:02:45]} 12. Be3 {[%clk 0:02:40]}  Nc6 {[%clk 0:02:43]} 13. e5 {[%clk 0:02:32]}  dxe5 {[%clk 0:02:32]} 14. Bxc5 {[%clk 0:02:26]}  Re8 {[%clk 0:02:33]} 15. fxe5 {[%clk 0:02:22]}  b6 {[%clk 0:02:33]} 16. Bd6 {[%clk 0:02:17]}  Rc8 {[%clk 0:02:31]} 17. Ne4 {[%clk 0:02:11]}  Ne7 {[%clk 0:02:14]} 18. Bxe7 {[%clk 0:01:53]}  Rxe7 {[%clk 0:02:11]} 19. c3 {[%clk 0:01:52]}  Bc6 {[%clk 0:02:07]} 20. Nd6 {[%clk 0:01:49]}  Rcc7 {[%clk 0:02:01]} 21. d4 {[%clk 0:01:36]}  Red7 {[%clk 0:01:59]} 22. Ng5 {[%clk 0:01:31]}  h6 {[%clk 0:01:52]} 23. Nge4 {[%clk 0:00:52]}  Qa8 {[%clk 0:01:43]} 24. Qf2 {[%clk 0:00:43]}  Kh8 {[%clk 0:01:42]} 25. Nf6 {[%clk 0:00:40]}  Re7 {[%clk 0:01:40]} 26. Qg3 {[%clk 0:00:26]}  b5 {[%clk 0:01:34]} 27. b4 {[%clk 0:00:25]}  Qb8 {[%clk 0:01:18]} 28. Rf2 {[%clk 0:00:25]}  Rcd7 {[%clk 0:01:18]} 29. Raf1 {[%clk 0:00:24]}  Qc7 {[%clk 0:01:15]} 30. Ng4 {[%clk 0:00:20]}  Bd5 {[%clk 0:00:55]} 31. Qh4 {[%clk 0:00:20]}  h5 {[%clk 0:00:55]} 32. Ne3 {[%clk 0:00:17]}  Kg8 {[%clk 0:00:46]} 33. Qg5 {[%clk 0:00:17]}  Qb8 {[%clk 0:00:40]} 34. Nxd5 {[%clk 0:00:18]}  exd5 {[%clk 0:00:40]} 35. Rf4 {[%clk 0:00:14]}  Qf8 {[%clk 0:00:36]} 36. g4 {[%clk 0:00:14]}  Bh6 {[%clk 0:00:36]} 37. Qf6 {[%clk 0:00:13]}  Bg7 {[%clk 0:00:36]} 38. Qg5 {[%clk 0:00:13]}  Bh6 {[%clk 0:00:37]} 39. Qf6 {[%clk 0:00:13]}  Re6 {[%clk 0:00:37]} 40. Qh4 {[%clk 0:00:12]}  Bxf4 {[%clk 0:00:36]} 41. Rxf4 {[%clk 0:00:12]}  Qd8 {[%clk 0:00:35]} 42. Qf2 {[%clk 0:00:10]}  Qf8 {[%clk 0:00:32]} 43. gxh5 {[%clk 0:00:11]}  Qg7 {[%clk 0:00:33]} 44. h6 {[%clk 0:00:10]}  Qxh6 {[%clk 0:00:32]} 45. Rxf7 {[%clk 0:00:10]}  Qc1+ {[%clk 0:00:29]} 46. Kg2 {[%clk 0:00:10]}  Qg5+ {[%clk 0:00:29]} 47. Kh1 {[%clk 0:00:11]}  Qc1+ {[%clk 0:00:25]} 48. Kg2 {[%clk 0:00:10]}  Qg5+ {[%clk 0:00:26]} 49. Kh1 {[%clk 0:00:10]}  Rd8 {[%clk 0:00:24]} 50. Rg7+ {[%clk 0:00:07]}  Kxg7 {[%clk 0:00:20]} 51. Qf7+ {[%clk 0:00:08]}  Kh6 {[%clk 0:00:21]} 52. Qxe6 {[%clk 0:00:09]}  Qc1+ {[%clk 0:00:21]} 53. Kg2 {[%clk 0:00:09]}  Qg5+ {[%clk 0:00:22]} 54. Kh1 {[%clk 0:00:09]}  Rf8 {[%clk 0:00:23]} 55. Nf7+ {[%clk 0:00:09]}  Kg7 {[%clk 0:00:22]} 56. Nxg5 {[%clk 0:00:08]}  Rf1+ {[%clk 0:00:22]} 57. Kg2 {[%clk 0:00:09]}  Rf8 {[%clk 0:00:23]} 58. Qe7+ {[%clk 0:00:09]}  Kg8 {[%clk 0:00:24]} 59. Qh7# {[%clk 0:00:09]} 1-0


[Site "https://www.chess.com"]